[Event "Panevezys ELITE Open 2021"]
[Site "Panevezys, Lithuania"]
[Date "2021.08.01"]
[Round "4.10"]
[White "Michailov, Andrej"]
[Black "Carlsson, Ludvig"]
[Result "1-0"]
[WhiteElo "1645"]
[BlackElo "2258"]
[PlyCount "73"]
[EventDate "2021.??.??"]
[TimeControl "90/40+30:0"]
[WhiteClock "0:02:45"]
[BlackClock "0:47:19"]

1. d4 {[%emt 0:01:11]} Nf6 {[%emt 0:00:26]} 2. c4 {[%emt 0:00:26]} e6 {[%emt 0:
00:09]} 3. Nc3 {[%emt 0:00:16]} Bb4 {[%emt 0:00:09]} 4. Qc2 {[%emt 0:01:55]}
O-O {[%emt 0:00:59]} 5. Bg5 {[%emt 0:05:18]} h6 {[%emt 0:07:20]} 6. Bxf6 {
[%emt 0:26:19]} Qxf6 {[%emt 0:00:10]} 7. e3 {[%emt 0:00:04]} b6 {[%emt 0:05:16]
} 8. Nge2 {[%emt 0:01:46]} Bb7 {[%emt 0:01:04]} 9. a3 {[%emt 0:00:05]} Bxc3+ {
[%emt 0:00:16]} 10. Nxc3 {[%emt 0:00:20]} d6 {[%emt 0:00:17]} 11. O-O-O {[%emt
0:02:57]} Nd7 {[%emt 0:00:40]} 12. Rg1 {[%emt 0:01:29]} Rfd8 {[%emt 0:06:15]}
13. Bd3 {[%emt 0:06:46]} d5 {[%emt 0:01:05]} 14. cxd5 {[%emt 0:03:38]} exd5 {
[%emt 0:00:07]} 15. g4 {[%emt 0:02:58]} c5 {[%emt 0:01:53]} 16. Bf1 {[%emt 0:
08:42]} cxd4 {[%emt 0:02:04]} 17. Rxd4 {[%emt 0:00:36]} Nc5 {[%emt 0:00:07]}
18. Bg2 {[%emt 0:00:47]} Ne6 {[%emt 0:00:16]} 19. Rd2 {[%emt 0:06:16]} Rab8 {
[%emt 0:05:41]} 20. Bxd5 {[%emt 0:06:25]} Rdc8 {[%emt 0:01:44]} 21. Bxe6 {
[%emt 0:08:17]} Qxe6 {[%emt 0:00:31]} 22. Rd4 {[%emt 0:00:59]} b5 {[%emt 0:03:
48]} 23. g5 {[%emt 0:01:07]} a5 {[%emt 0:01:47]} 24. gxh6 {[%emt 0:00:59]} g6 {
[%emt 0:00:06]} 25. Qd3 {[%emt 0:04:03]} Qe8 {[%emt 0:02:59]} 26. h4 {[%emt 0:
04:16]} Bf3 {[%emt 0:01:48]} 27. Qf5 {[%emt 0:01:10]} Rb6 {[%emt 0:02:02]} 28.
Qxf3 {[%emt 0:02:19]} b4 {[%emt 0:00:05]} 29. h5 {[%emt 0:00:34]} bxc3 {[%emt
0:00:27]} 30. b4 {[%emt 0:00:14]} Qa4 {[%emt 0:02:41]} 31. hxg6 {[%emt 0:01:11]
} Qxa3+ {[%emt 0:00:41]} 32. Kd1 {[%emt 0:00:20]} Qb3+ {[%emt 0:04:55]} 33. Ke2
{[%emt 0:00:57]} Qa2+ {[%emt 0:00:43]} 34. Kf1 {[%emt 0:00:19]} Rxg6 {[%emt 0:
00:05]} 35. Rxg6+ {[%emt 0:00:13]} fxg6 {[%emt 0:00:44]} 36. Qb7 {[%emt 0:00:
41]} Qb1+ {[%emt 0:02:42]} 37. Kg2 {[%emt 0:00:09]} 1-0